bitfinex-derivatives/quotes_SOLF0:USTF0_20260123
["timestamp","ask_amount","ask_price","bid_price","bid_amount"]
[1769175200520,10.57372261,127.3,127.25,3.27242604]
[1769175200720,5.87084569,127.29,127.25,3.27242604]
[1769175200920,10.57372261,127.3,127.25,3.27242604]
[1769175201122,5.87084569,127.29,127.25,3.27242604]
[1769175201317,10.57372261,127.3,127.25,3.27242604]
[1769175201516,5.87088084,127.29,127.25,3.27242604]
[1769175201717,10.57372261,127.3,127.25,3.27242604]
[1769175201920,5.87088084,127.29,127.25,3.27242604]
[1769175202122,10.57372261,127.3,127.25,3.27242604]
[1769175202322,5.87090469,127.29,127.25,3.27242604]
[1769175202529,10.57372261,127.3,127.25,3.27242604]
[1769175202727,5.87092191,127.29,127.25,3.27242604]
[1769175202930,10.57372261,127.3,127.25,3.27242604]
[1769175203131,5.87092191,127.29,127.25,3.27242604]
[1769175203328,10.57372261,127.3,127.25,3.27242604]
[1769175203527,5.87096922,127.29,127.25,3.27242604]
[1769175203728,10.57372261,127.3,127.25,3.27242604]
[1769175203924,5.87096922,127.29,127.25,3.27242604]
[1769175204121,10.57372261,127.3,127.25,3.27242604]
[1769175204321,5.87100417,127.29,127.25,3.27242604]
[1769175204524,10.57372261,127.3,127.25,3.27242604]
[1769175204719,5.87102314,127.29,127.25,3.27242604]
[1769175205025,10.57372261,127.3,127.25,3.27242604]
[1769175205331,5.87106454,127.29,127.25,3.27242604]
[1769175205533,10.57372261,127.3,127.25,3.27242604]
[1769175205732,5.87108411,127.29,127.25,3.27242604]
[1769175206031,7.0801,127.29,127.25,3.27242604]
[1769175206233,5.87154119,127.28,127.25,3.27242604]
[1769175206532,7.0801,127.29,127.25,3.27242604]
[1769175208335,0.0536462,127.28,127.26,0.05901415]
[1769175209326,3.09626083,127.27,127.22,7.0838]
[1769175209530,3.09626083,127.27,127.22,10.3123226]
[1769175210742,0.05315868,127.26,127.22,10.3123226]
[1769175212740,0.05315868,127.26,127.23,3.23904305]
[1769175212939,10.2617573,127.29,127.23,10.32234305]
[1769175213139,9.04658546,127.28,127.23,10.32234305]
[1769175213337,3.1817573,127.28,127.23,10.32234305]
[1769175229660,10.2624573,127.28,127.23,3.23904305]
[1769175229950,2.1094148,127.3,127.21,3.23904305]
[1769175229951,5.2911721,127.26,127.21,3.23904305]
[1769175230451,5.2911721,127.24,127.19,3.23904305]
[1769175230843,5.2911721,127.22,127.17,3.23904305]
[1769175231241,3.1817573,127.21,127.17,3.23904305]
[1769175231450,3.1817573,127.21,127.15,10.32624305]
[1769175232043,0.05002048,127.19,127.15,10.32624305]
[1769175233259,0.05002048,127.19,127.16,10.32624305]
[1769175233452,3.1817573,127.21,127.16,3.23904305]
[1769175235958,0.05041079,127.2,127.16,3.23904305]
[1769175239660,3.1817573,127.19,127.14,3.23904305]
[1769175240775,10.2674573,127.19,127.14,3.23904305]
[1769175242270,3.16883301,127.18,127.13,7.0885]
[1769175242680,3.16883301,127.18,127.12,5.44915458]
[1769175242681,3.16883301,127.17,127.12,3.33644471]
[1769175242868,5.28154288,127.17,127.12,3.33644471]
[1769175243875,7.0873,127.16,127.12,3.33644471]
[1769175244381,10.25613301,127.16,127.12,3.33644471]
[1769175244979,3.16883301,127.16,127.12,3.33644471]
[1769175280704,10.25623301,127.16,127.1,10.59172692]
[1769175281603,10.25623301,127.16,127.11,3.50122692]
[1769175295914,3.25332855,127.14,127.09,10.59222692]
[1769175296723,3.25332855,127.14,127.09,7.091]
[1769175296919,10.34162855,127.14,127.08,12.70553679]
[1769175297314,10.34162855,127.14,127.09,3.50122692]
[1769175301621,3.25332855,127.13,127.08,7.0916]
[1769175302412,3.25332855,127.13,127.08,10.51531029]
[1769175302927,3.25332855,127.13,127.08,12.63033798]
[1769175304525,3.25332855,127.13,127.08,10.51531029]
[1769175308119,3.25332855,127.13,127.08,3.42371029]
[1769175308120,3.40711705,127.12,127.08,3.42371029]
[1769175308333,3.40711705,127.12,127.07,7.0922]
[1769175309134,3.40711705,127.12,127.07,10.4772586]
[1769175309325,3.40711705,127.12,127.08,3.3850586]
[1769175309525,12.61104474,127.13,127.08,3.3850586]
[1769175314134,10.49601705,127.13,127.08,3.3850586]
[1769175324346,3.40711705,127.16,127.1,3.3850586]
[1769175324546,3.40711705,127.16,127.11,3.3850586]
[1769175324950,3.40711705,127.16,127.11,10.4747586]
[1769175325944,3.40711705,127.18,127.13,2.11502769]
[1769175326149,5.84372462,127.17,127.13,2.11502769]
[1769175327047,3.40711705,127.18,127.14,2.11502769]
[1769175327448,3.40711705,127.18,127.14,5.50008629]
[1769175328041,3.40711705,127.18,127.14,12.58838629]
[1769175328945,3.40711705,127.18,127.15,2.11502769]
[1769175329651,3.40711705,127.18,127.14,12.58838629]
[1769175330449,3.40711705,127.18,127.13,2.11502769]
[1769175330649,3.40711705,127.18,127.12,5.50008629]
[1769175331956,3.40711705,127.18,127.12,12.58948629]
[1769175332642,3.24531037,127.17,127.12,10.4744586]
[1769175335159,3.24531037,127.17,127.12,7.0894]
[1769175339353,3.24531037,127.17,127.11,3.19926946]
[1769175340956,3.24531037,127.17,127.11,10.28926946]
[1769175341458,3.24531037,127.17,127.12,10.28866946]
[1769175342863,3.24531037,127.17,127.13,10.28806946]
[1769175349766,12.44593806,127.19,127.13,10.28806946]
[1769175349966,3.24531037,127.18,127.13,10.28806946]
[1769175352164,10.33141037,127.18,127.13,10.28806946]
[1769175352669,3.24531037,127.16,127.11,3.19926946]
[1769175353076,3.24531037,127.16,127.11,10.28916946]
[1769175359982,3.24531037,127.16,127.12,3.19926946]
[1769175361075,12.44531849,127.18,127.13,3.19926946]
[1769175361382,3.24531037,127.18,127.13,3.19926946]
[1769175362480,3.38710292,127.2,127.15,3.33887718]
[1769175364880,7.0849,127.21,127.16,3.33887718]
[1769175365681,7.0849,127.21,127.16,5.4527853]
[1769175365883,3.38710292,127.22,127.17,5.4527853]
[1769175366977,3.38710292,127.22,127.17,12.5393853]
[1769175367681,291.75408245,127.23,127.18,3.39596839]
[1769175368888,291.75408245,127.23,127.19,7.0855]
[1769175369493,291.75408245,127.23,127.19,10.48146839]
[1769175369691,291.75408245,127.23,127.2,7.085]
[1769175369885,291.75408245,127.23,127.2,10.48096839]
[1769175370293,3.28532186,127.26,127.2,10.48096839]
[1769175373200,3.28532186,127.26,127.2,12.59487651]
[1769175373390,3.28532186,127.26,127.2,10.48096839]
[1769175377601,3.28532186,127.25,127.2,3.39596839]
[1769175377804,3.28532186,127.24,127.18,3.39596839]
[1769175378891,3.28532186,127.24,127.19,10.48146839]
[1769175380598,3.28532186,127.24,127.2,7.0849]
[1769175381004,2.11390812,127.25,127.2,10.48086839]
[1769175385502,3.28532186,127.26,127.2,10.48086839]
[1769175387408,5.39922998,127.26,127.2,10.48086839]
[1769175392207,3.31298548,127.25,127.2,10.48086839]
[1769175395910,7.0818,127.26,127.21,3.20584063]
[1769175396116,10.39478548,127.26,127.21,3.20584063]
[1769175403117,3.31298548,127.26,127.21,3.20584063]
[1769175409222,0.05354011,127.25,127.22,0.05270901]
[1769175420221,3.31298548,127.24,127.19,3.20584063]
[1769175422527,3.47740887,127.23,127.17,5.55243897]
[1769175422721,2.11148826,127.22,127.17,3.44095071]
[1769175422921,3.47740887,127.21,127.15,3.44095071]
[1769175423226,3.47740887,127.2,127.13,207.98785973]
[1769175423418,9.30929898,127.2,127.14,3.44095071]
[1769175423621,3.47740887,127.2,127.14,3.44095071]
[1769175424121,0.0560373,127.18,127.15,3.44095071]
[1769175424627,3.47740887,127.2,127.15,3.44095071]
[1769175427129,3.47740887,127.2,127.15,10.52875071]
[1769175427431,7.0846,127.21,127.16,3.49562645]
[1769175427932,10.5915252,127.21,127.16,3.49562645]
[1769175428326,3.5069252,127.21,127.16,3.49562645]
[1769175431132,5.61841346,127.21,127.16,3.49562645]
[1769175431333,5.61841346,127.21,127.14,2.11148826]
[1769175431334,3.5069252,127.2,127.14,3.49562645]
[1769175431824,3.56590853,127.2,127.14,3.49562645]
[1769175432029,3.5069252,127.19,127.14,3.49562645]
[1769175438338,10.5926252,127.19,127.14,3.49562645]
[1769175454643,0.05898333,127.2,127.15,5.49739723]
[1769175455042,3.49514637,127.21,127.15,5.49739723]
[1769175455451,0.055841,127.19,127.15,5.49739723]
[1769175456051,0.055841,127.19,127.15,12.58489723]
[1769175458152,0.055841,127.19,127.15,10.47340897]
[1769175460954,0.055841,127.19,127.16,7.0872]
[1769175466753,0.055841,127.19,127.16,10.47310897]
[1769175467754,0.055841,127.19,127.16,3.38590897]
[1769175478267,5.87937275,127.21,127.17,3.38590897]
[1769175479071,5.87937275,127.21,127.18,3.38590897]
[1769175479272,12.68983463,127.24,127.18,3.38590897]
[1769175479476,5.8757492,127.23,127.18,3.38590897]
[1769175479862,3.49514637,127.24,127.18,3.38590897]
[1769175480171,5.87672931,127.23,127.18,3.38590897]
[1769175480874,5.87672931,127.23,127.19,7.0854]
[1769175481071,5.87672931,127.23,127.19,10.47130897]
[1769175481374,3.49514637,127.24,127.19,10.47130897]
[1769175481968,5.50639101,127.26,127.2,10.53018993]
[1769175482167,5.87627052,127.25,127.2,10.53018993]
[1769175483273,3.39490275,127.26,127.2,10.53018993]
[1769175483871,10.47660275,127.26,127.2,10.53018993]
[1769175484065,3.39490275,127.24,127.18,10.53088993]
[1769175485175,3.39490275,127.24,127.19,7.0854]
[1769175485671,5.50591443,127.24,127.19,7.0854]
[1769175486281,3.39490275,127.24,127.19,7.0854]
[1769175486887,3.39490275,127.24,127.17,2.11101168]
[1769175486888,3.32467671,127.2,127.17,7.0862]
[1769175487080,3.32467671,127.2,127.14,3.38718162]
[1769175489592,5.43568839,127.2,127.14,3.38718162]
[1769175490486,5.43568839,127.19,127.14,3.38718162]
[1769175492393,3.32467671,127.19,127.14,3.38718162]
[1769175493677,5.43568839,127.19,127.14,3.38718162]
[1769175497293,12.52128839,127.19,127.14,3.38718162]
[1769175500597,7.0862,127.18,127.14,3.38718162]
[1769175506994,10.41087671,127.18,127.12,5.4981933]
[1769175507301,10.41087671,127.18,127.13,3.38718162]
[1769175507504,3.32467671,127.16,127.11,12.5877933]
[1769175508389,3.32467671,127.16,127.11,10.47678162]
[1769175508595,10.41217671,127.16,127.11,3.38718162]
[1769175508796,3.32467671,127.15,127.11,3.38718162]
[1769175518210,10.41247671,127.15,127.11,3.38718162]
[1769175521313,7.0884,127.14,127.09,10.58841448]
[1769175521514,10.47879834,127.14,127.09,10.58841448]
[1769175524315,9.19881168,127.15,127.1,3.49741448]
[1769175524618,12.58921002,127.15,127.1,3.49741448]
[1769175525222,7.0885,127.14,127.1,3.49741448]
[1769175527724,3.39039834,127.13,127.08,10.58901448]
[1769175528721,3.39039834,127.13,127.09,3.49741448]
[1769175529113,2.11101168,127.12,127.07,3.49741448]
[1769175529310,5.50141002,127.12,127.07,3.49741448]
[1769175531020,12.59091002,127.12,127.07,3.49741448]
[1769175531322,3.39039834,127.11,127.05,10.59071448]
[1769175532426,3.39039834,127.1,127.04,10.59121448]
[1769175532920,3.39039834,127.08,127.03,6.14747048]
[1769175533126,3.39039834,127.07,127.03,6.14747048]
[1769175534925,3.39039834,127.07,127.01,3.49741448]
[1769175534926,3.39039834,127.06,127.01,3.49741448]
[1769175535118,3.39039834,127.04,126.99,3.49741448]
[1769175535317,3.39039834,127.02,126.95,5.60842616]
[1769175535516,3.39039834,127.0,126.93,5.60842616]
[1769175536024,3.39039834,127.0,126.94,3.49741448]
[1769175536231,3.39039834,127.0,126.94,5.60842616]
[1769175537125,3.39039834,127.0,126.94,3.49741448]
[1769175540543,3.39039834,127.02,126.95,2.11101168]
[1769175540722,3.39039834,127.02,126.96,3.49741448]
[1769175541235,3.39039834,127.02,126.97,5.60842616]
[1769175542029,3.39039834,127.02,126.98,2.11101168]
[1769175542524,3.24709681,127.05,126.99,2.11101168]
[1769175543034,3.24709681,127.05,126.98,5.61404809]
[1769175543517,3.24709681,127.04,126.98,5.61404809]
[1769175543722,3.24709681,127.03,126.96,2.11804532]
[1769175544130,3.24709681,127.02,126.96,2.11804532]
[1769175544523,3.24709681,127.02,126.95,5.61404809]
[1769175545322,10.34239681,127.02,126.95,5.61404809]
[1769175545935,3.24709681,127.02,126.97,2.11804532]
[1769175546634,3.24709681,127.02,126.97,5.32039156]
[1769175547228,9.21234532,127.04,126.97,5.32039156]
[1769175547229,5.31791922,127.05,126.98,3.20234624]
[1769175547738,3.1998739,127.04,126.98,3.20234624]
[1769175548940,3.1998739,127.04,126.99,2.11804532]
[1769175549422,3.1998739,127.04,126.99,5.32039156]
[1769175550231,10.2924739,127.07,127.01,5.32039156]
[1769175554841,10.2924739,127.07,127.02,2.11804532]
[1769175555236,10.2924739,127.07,127.02,5.32039156]
[1769175556043,7.0916,127.09,127.03,5.32039156]
[1769175556432,3.1998739,127.1,127.03,5.32039156]
[1769175556634,3.1998739,127.1,127.02,2.11804532]
[1769175557038,3.1998739,127.09,127.02,2.11804532]
[1769175557942,2.11804532,127.1,127.02,2.11804532]
[1769175557943,10.2915739,127.08,127.02,5.32039156]
[1769175561851,10.2915739,127.08,127.02,3.20234624]
[1769175566852,10.2915739,127.08,127.02,10.29714624]
[1769175568053,10.2915739,127.08,127.03,3.20234624]
[1769175568555,3.1998739,127.08,127.03,3.20234624]
[1769175568759,3.1998739,127.08,127.03,5.32039156]
[1769175570053,3.1998739,127.08,127.04,7.0939]
[1769175572162,3.1998739,127.08,127.03,5.32039156]
[1769175572558,0.05504581,127.07,127.03,5.32039156]
[1769175573964,0.05504581,127.07,127.03,12.41459156]
[1769175574461,3.22232959,127.07,127.02,9.21294532]
[1769175574857,3.16728378,127.07,127.02,9.21294532]
[1769175575058,3.16728378,127.07,127.02,12.53111809]
[1769175577066,3.16728378,127.07,127.02,10.41307277]
[1769175581665,10.25958378,127.07,127.02,10.41307277]
[1769175581869,3.16728378,127.06,127.01,10.41367277]
[1769175589468,3.16728378,127.06,127.02,3.31817277]
[1769175589668,7.0923,127.07,127.02,3.31817277]
[1769175590775,10.25958378,127.07,127.02,3.31817277]
[1769175592775,3.16728378,127.06,127.02,3.31817277]
[1769175593567,7.0923,127.07,127.02,3.31817277]
[1769175593964,10.25958378,127.07,127.02,3.31817277]
[1769175599779,5.88722947,127.06,127.02,3.31817277]
[1769175599966,10.25958378,127.07,127.02,3.31817277]
[1769175600380,10.25958378,127.07,127.02,10.41317277]
[1769175605384,5.88679806,127.06,127.02,10.41317277]
[1769175605582,10.25958378,127.07,127.02,10.41317277]
[1769175607579,5.88696284,127.06,127.02,10.41317277]
[1769175607786,10.25958378,127.07,127.02,10.41317277]
[1769175608886,5.88695794,127.06,127.02,10.41317277]
[1769175609084,10.25958378,127.07,127.02,10.41317277]
[1769175609282,5.886883,127.06,127.02,10.41317277]
[1769175609482,3.2189609,127.08,127.03,10.35412121]
[1769175609686,5.33610495,127.1,127.04,3.25982121]
[1769175609984,5.88739229,127.09,127.04,3.25982121]
[1769175610786,9.10635319,127.09,127.04,3.25982121]
[1769175611091,3.2189609,127.09,127.04,10.35322121]
[1769175611293,7.0904,127.11,127.03,2.11714405]
[1769175611294,3.2189609,127.11,127.05,3.25982121]
[1769175611987,3.2189609,127.11,127.05,5.37696526]
[1769175612184,3.2189609,127.11,127.06,3.25982121]
[1769175612390,3.2189609,127.11,127.06,10.35242121]
[1769175612978,3.2189609,127.11,127.06,3.25982121]
[1769175613690,7.0895,127.12,127.06,3.25982121]
[1769175614187,10.3084609,127.12,127.06,3.25982121]
[1769175615390,10.3090609,127.11,127.06,3.25982121]
[1769175618795,3.2189609,127.1,127.05,9.21034405]
[1769175619288,3.2189609,127.1,127.05,12.47016526]
[1769175621095,0.05324443,127.09,127.06,0.05452937]
[1769175622999,0.05324443,127.09,127.06,3.31435058]
[1769175624700,0.05324443,127.09,127.06,0.05452937]
[1769175625399,3.27220533,127.09,127.03,10.35372121]
[1769175625602,3.27220533,127.09,127.03,12.47086526]
[1769175625797,3.2189609,127.09,127.03,12.47086526]
[1769175626398,3.2189609,127.09,127.04,3.25982121]
[1769175626804,0.05895184,127.07,127.04,3.25982121]
[1769175633413,0.05895184,127.07,127.04,10.35362121]
[1769175639614,0.05895184,127.07,127.02,3.20971473]
[1769175640919,0.05895184,127.07,127.02,10.30471473]
[1769175641518,0.05895184,127.07,127.03,3.20971473]
[1769175644218,0.05895184,127.07,127.03,10.30401473]
[1769175644525,201.07378855,127.18,127.04,2.11714405]
[1769175644526,5.37608367,127.1,127.04,2.11714405]
[1769175644817,297.68,127.16,127.01,110.3694]
[1769175644818,7.09,127.11,127.06,3.20971473]
[1769175647224,9.20714405,127.11,127.06,3.20971473]
[1769175647822,12.46608367,127.11,127.06,3.20971473]
[1769175652232,3.25893962,127.11,127.06,10.30241473]
[1769175657929,3.25893962,127.1,127.04,5.32685878]
[1769175659129,3.25893962,127.1,127.05,7.0931]
[1769175659517,3.25893962,127.1,127.05,10.30281473]
[1769175661135,3.25893962,127.1,127.06,7.0927]
[1769175662932,3.25893962,127.1,127.07,7.0922]
[1769175663436,3.6538573,127.12,127.07,10.6691821]
[1769175664028,3.6538573,127.1,127.05,3.5769821]
[1769175665025,3.6538573,127.1,127.05,10.6702821]
[1769175668031,5.89848852,127.09,127.05,10.6702821]
[1769175669639,3.6538573,127.1,127.05,10.6702821]
[1769175676249,10.7444573,127.1,127.05,3.5769821]
[1769175688347,10.7444573,127.1,127.05,10.6702821]
[1769175695553,3.6538573,127.1,127.06,3.50847961]
[1769175695756,3.26939299,127.11,127.06,3.50847961]
[1769175695955,5.9096602,127.1,127.06,3.50847961]
[1769175696664,3.26939299,127.11,127.06,3.50847961]
[1769175698368,9.1785665,127.1,127.05,7.0933]
[1769175698565,3.26939299,127.1,127.05,10.60177961]
[1769175707576,3.26939299,127.1,127.06,7.0928]
[1769175718888,9.20561129,127.12,127.07,10.60067961]
[1769175719092,5.91138767,127.11,127.07,10.60067961]
[1769175719297,9.20561129,127.12,127.07,10.60067961]
[1769175719495,5.90116627,127.11,127.07,10.60067961]
[1769175719692,9.20561129,127.12,127.07,10.60067961]
[1769175719896,5.90116627,127.11,127.07,10.60067961]
[1769175720096,12.47500428,127.12,127.07,10.60067961]
[1769175720298,5.90122106,127.11,127.07,10.60067961]
[1769175720500,5.90122106,127.1,127.07,10.60067961]
[1769175720795,5.38550428,127.12,127.07,10.60067961]
[1769175720996,5.90084737,127.11,127.07,10.60067961]
[1769175721792,5.38550428,127.12,127.07,10.60067961]
[1769175722098,322.43912704,127.14,127.08,10.38594995]
[1769175722294,5.90034969,127.13,127.08,3.29454995]
[1769175722597,5.90034969,127.12,127.09,7.0909]
[1769175722794,315.35032704,127.14,127.09,7.0909]
[1769175723099,5.90053785,127.13,127.09,7.0909]
[1769175727800,5.90053785,127.13,127.09,10.37132818]
[1769175728195,313.23421575,127.14,127.09,10.37132818]
[1769175728702,313.23421575,127.14,127.1,7.0905]
[1769175728897,310.06519851,127.14,127.11,3.28042818]
[1769175729996,3.2618414,127.15,127.11,3.28042818]
[1769175730302,3.2618414,127.15,127.1,7.0905]
[1769175730701,3.2618414,127.15,127.1,10.37092818]
[1769175738811,10.3497414,127.15,127.1,10.37092818]
[1769175740509,10.3497414,127.15,127.1,3.28042818]
[1769175745716,12.46476511,127.15,127.1,3.28042818]
[1769175760835,10.3497414,127.15,127.1,3.28042818]
[1769175769138,5.89708886,127.14,127.1,3.28042818]
[1769175773145,10.3497414,127.15,127.1,3.28042818]
[1769175773343,5.90130251,127.14,127.1,3.28042818]
[1769175773644,10.3497414,127.15,127.1,3.28042818]
[1769175773839,5.90101644,127.14,127.1,3.28042818]
[1769175774041,10.3497414,127.15,127.1,3.28042818]
[1769175774240,5.90102948,127.14,127.1,3.28042818]
[1769175778940,5.90102948,127.14,127.1,10.37092818]
[1769175794356,10.3497414,127.15,127.1,10.37092818]
[1769175797145,3.2618414,127.15,127.1,10.37092818]
[1769175798958,10.58751258,127.17,127.12,3.48072528]
[1769175799857,9.39324879,127.16,127.11,9.20420903]
[1769175800057,3.50081258,127.16,127.11,9.20420903]
[1769175800445,3.50081258,127.16,127.11,12.68493431]
[1769175802950,3.50081258,127.18,127.13,3.48072528]
[1769175804268,10.58691258,127.18,127.13,3.48072528]
[1769175811970,12.70122161,127.18,127.13,3.48072528]
[1769175814967,10.58691258,127.18,127.13,3.48072528]
[1769175815877,3.50081258,127.18,127.13,10.56952528]
[1769175821978,5.61512161,127.18,127.13,10.56952528]
[1769175825080,3.50081258,127.18,127.13,10.56952528]
[1769175825285,5.61512161,127.18,127.13,10.56952528]
[1769175828378,3.50081258,127.18,127.13,10.56952528]
[1769175828680,5.61512161,127.18,127.13,10.56952528]
[1769175832282,315.23518461,127.2,127.14,10.41971098]
[1769175832473,5.8742468,127.19,127.14,10.41971098]
[1769175833278,9.28984377,127.19,127.14,10.41971098]
[1769175833479,3.41559697,127.19,127.14,10.41971098]
[1769175834386,5.529906,127.19,127.14,10.41971098]
[1769175835981,5.529906,127.19,127.14,3.33141098]
[1769175836181,2.11430903,127.18,127.13,3.33141098]
[1769175837384,2.11430903,127.18,127.14,7.0883]
[1769175846889,5.44439832,127.18,127.14,7.0883]
[1769175847091,2.11373328,127.16,127.13,3.33141098]
[1769175847297,2.11373328,127.16,127.12,7.089]
[1769175848098,2.11373328,127.16,127.12,10.5604077]
[1769175852106,3.33066504,127.17,127.12,10.5604077]
[1769175867213,3.33066504,127.17,127.12,12.67414098]
[1769175867420,3.33066504,127.17,127.13,3.4714077]
[1769175869020,7.0861,127.18,127.13,3.4714077]
[1769175869220,3.33066504,127.19,127.14,5.58514098]
[1769175870017,3.33066504,127.19,127.14,12.67344098]
[1769175870216,3.33066504,127.19,127.15,3.4714077]
[1769175870620,10.41516504,127.21,127.15,3.4714077]
[1769175870814,5.8564108,127.2,127.15,3.4714077]
[1769175871125,10.41516504,127.21,127.16,3.4714077]
[1769175871920,10.41516504,127.21,127.16,10.5586077]
[1769175874426,10.41516504,127.21,127.16,3.4714077]
[1769175874926,9.19873328,127.2,127.16,3.4714077]
[1769175875331,2.11373328,127.2,127.16,3.4714077]
[1769175877620,3.60915459,127.19,127.14,3.63581479]
[1769175878528,10.69475459,127.19,127.14,3.63581479]
[1769175880029,5.72288787,127.18,127.13,7.0887]
[1769175880626,5.72288787,127.18,127.13,10.72451479]
[1769175889438,3.60915459,127.18,127.13,10.72451479]
[1769175893235,3.60915459,127.18,127.14,3.63581479]
[1769175893541,7.0856,127.19,127.14,3.63581479]
[1769175893939,5.72288787,127.2,127.14,3.63581479]
[1769175893940,10.69415459,127.2,127.15,3.63581479]
[1769175894644,7.0844,127.22,127.17,3.63581479]
[1769175896845,3.60915459,127.21,127.16,3.63581479]
[1769175900646,10.69355459,127.21,127.16,3.63581479]
[1769175900838,3.60915459,127.2,127.14,10.72411479]
[1769175901336,3.60915459,127.19,127.13,7.0889]
[1769175901842,3.60915459,127.19,127.13,10.72471479]
[1769175903048,10.69465459,127.19,127.13,10.72471479]
[1769175905143,3.46171812,127.17,127.13,3.63581479]
[1769175905339,5.5754514,127.17,127.13,3.63581479]
[1769175906247,3.46171812,127.17,127.13,3.63581479]
[1769175908449,9.19923328,127.2,127.13,3.63581479]
[1769175908643,9.19923328,127.2,127.15,3.1627055]
[1769175908844,7.0855,127.2,127.15,3.1627055]
[1769175910549,5.56238145,127.21,127.15,10.2502055]
[1769175910848,5.56238145,127.21,127.16,3.1627055]
[1769175911240,12.64688145,127.21,127.16,3.1627055]
[1769175913750,5.56238145,127.21,127.16,10.2499055]
[1769175914243,5.56238145,127.23,127.17,3.1627055]
[1769175914445,5.84534925,127.22,127.17,3.1627055]
[1769175914748,9.29487889,127.22,127.17,3.1627055]
[1769175914950,10.53352964,127.22,127.17,3.1627055]
[1769175915549,3.44952964,127.24,127.18,5.27555731]
[1769175915840,3.44952964,127.24,127.19,3.1627055]
[1769175916948,10.53232964,127.24,127.19,3.1627055]
[1769175917148,10.53232964,127.24,127.18,9.19885181]
[1769175917149,309.37098535,127.26,127.2,5.27555731]
[1769175917450,5.84087764,127.25,127.2,5.27555731]
[1769175917952,5.84087764,127.25,127.2,12.36045731]
[1769175918541,5.84087764,127.25,127.21,10.2471055]
[1769175918741,3.44952964,127.28,127.23,2.11285181]
[1769175918949,3.44952964,127.28,127.23,5.27555731]
[1769175919247,3.44952964,127.28,127.23,12.35875731]
[1769175919946,3.44952964,127.28,127.23,10.2459055]
[1769175921158,3.44952964,127.3,127.24,10.2454055]
[1769175922157,5.56238145,127.3,127.24,10.2454055]
[1769175925159,3.44952964,127.3,127.25,10.2449055]
[1769175926558,3.44952964,127.29,127.22,5.27555731]
[1769175926862,5.56238145,127.29,127.23,3.1627055]
[1769175927965,5.56238145,127.29,127.24,7.0827]
[1769175928354,3.44952964,127.28,127.23,3.1627055]
[1769175928656,5.56238145,127.28,127.23,3.1627055]
[1769175930360,12.64298145,127.28,127.23,3.1627055]
[1769175933470,3.25317011,127.26,127.2,3.27373667]
[1769175933671,5.36602192,127.26,127.2,3.27373667]
[1769175934865,12.44772192,127.26,127.2,3.27373667]
[1769175935472,3.25317011,127.25,127.2,3.27373667]
[1769175935768,3.25317011,127.24,127.18,3.27373667]
[1769175936660,7.0822,127.25,127.18,3.27373667]
[1769175936867,7.0822,127.25,127.19,3.27373667]
[1769175937765,10.33537011,127.25,127.19,3.27373667]
[1769175939878,12.44822192,127.25,127.19,3.27373667]
[1769175940173,5.36602192,127.24,127.19,3.27373667]
[1769175940564,12.44882192,127.24,127.19,3.27373667]
[1769175950781,10.33597011,127.24,127.19,3.27373667]
[1769175952084,12.44882192,127.24,127.19,3.27373667]
[1769175953284,10.33597011,127.24,127.19,3.27373667]
[1769175953684,3.25317011,127.22,127.18,7.086]
[1769175954789,2.11285181,127.23,127.18,10.35973667]
[1769175955085,10.33597011,127.24,127.18,10.35973667]
[1769175958090,10.33597011,127.24,127.19,3.27373667]
[1769175958480,10.33597011,127.24,127.19,10.35923667]
[1769175961790,10.33597011,127.24,127.19,3.27373667]
[1769175962093,3.17952209,127.23,127.18,7.086]
[1769175962291,5.2923739,127.23,127.18,7.086]
[1769175962690,3.17952209,127.22,127.17,3.46713725]
[1769175963894,3.17952209,127.22,127.17,10.55363725]
[1769175966095,3.17952209,127.22,127.16,2.11285181]
[1769175966096,3.60955301,127.24,127.18,3.51864583]
[1769175966290,3.60955301,127.24,127.19,3.51864583]
[1769175967996,3.60955301,127.24,127.19,10.60414583]
[1769175986106,3.60955301,127.22,127.17,3.51864583]
[1769175987015,3.60955301,127.22,127.17,10.60514583]
[1769175991412,3.60955301,127.22,127.17,3.51864583]
[1769175991614,10.69345301,127.22,127.17,3.51864583]
[1769176007528,10.69345301,127.22,127.17,10.60514583]
[1769176008323,10.68008802,127.24,127.18,10.55738973]
[1769176008918,3.59688802,127.24,127.2,3.47128973]
[1769176009114,10.67908802,127.26,127.2,3.47128973]
[1769176009322,5.84521185,127.25,127.2,3.47128973]
[1769176009518,5.84521185,127.25,127.19,9.19711616]
[1769176009519,3.59688802,127.28,127.22,3.47128973]
[1769176010125,3.59688802,127.28,127.23,5.58290589]
[1769176010924,3.59688802,127.28,127.23,12.66610589]
[1769176011131,301.29014601,127.29,127.24,3.47128973]
[1769176011331,304.88703403,127.29,127.24,3.47128973]
[1769176011829,304.88703403,127.29,127.25,0.05192601]
[1769176012930,0.05153163,127.28,127.25,0.05192601]
[1769176013132,3.64841965,127.28,127.25,0.05192601]
[1769176018442,3.64841965,127.28,127.24,7.0827]
[1769176021152,5.70850418,127.26,127.19,113.68808973]
[1769176021346,3.59688802,127.25,127.19,113.68808973]
[1769176021546,3.59688802,127.25,127.2,3.47128973]